fUST/lending_fUST_20240327
["ID","MTS","AMOUNT","RATE_DAILY","PERIOD"]
[320677471,1711493444618,-500.0,0.00019178,2]
[320677473,1711493444628,-5970.37,0.00019178,2]
[320677475,1711493444639,-500.0,0.00019178,2]
[320677478,1711493444650,-760.34,0.00019178,2]
[320677480,1711493444659,-500.0,0.00019178,2]
[320677481,1711493444668,-1240.78,0.00019178,2]
[320677483,1711493444677,-500.0,0.00019178,2]
[320677486,1711493444688,-500.0,0.00019178,2]
[320677487,1711493444697,-500.0,0.00019178,2]
[320677490,1711493444706,-621.48,0.00019178,2]
[320677505,1711493444836,-500.0,0.00019178,2]
[320677507,1711493444845,-1212.08,0.00019178,2]
[320677509,1711493444854,-973.88,0.00019178,2]
[320677511,1711493444865,-552.59,0.00019178,2]
[320677513,1711493444874,-4842.75,0.00019178,2]
[320677515,1711493444885,-729.22,0.00019178,2]
[320677516,1711493444899,-500.0,0.00019178,2]
[320677518,1711493444908,-500.0,0.00019178,2]
[320677520,1711493444918,-4022.83,0.00019178,2]
[320677522,1711493444927,-533.06,0.00019178,2]
[320677524,1711493444937,-626.95,0.00019178,2]
[320677526,1711493444945,-508.4634803,0.00019178,2]
[320677685,1711493446279,-328.67,0.00019178,2]
[320680709,1711493667895,377.85,0.00012,7]
[320680736,1711493998699,556.08,0.0002111,4]
[320680740,1711494131982,161.208105,0.00018444,2]
[320680756,1711494632275,-1072.72657137,0.00019176,2]
[320680757,1711494632289,-603.88392092,0.00019176,2]
[320680758,1711494632298,-300.0,0.00019177,2]
[320680759,1711494632308,-500.0,0.00019178,2]
[320680760,1711494632318,-500.58,0.00019178,2]
[320680761,1711494632329,-518.71,0.00019178,2]
[320680763,1711494632340,-786.33,0.00019178,2]
[320680765,1711494632351,-500.0,0.00019178,2]
[320680766,1711494632360,-500.0,0.00019178,2]
[320680768,1711494632371,-584.43,0.00019178,2]
[320680769,1711494632382,-500.0,0.00019178,2]
[320680770,1711494632392,-500.0,0.00019178,2]
[320680771,1711494632402,-500.0,0.00019178,2]
[320680772,1711494632412,-416.52355516,0.00019178,2]
[320680773,1711494632423,-533.10971905,0.00019178,2]
[320680774,1711494632433,-500.0,0.00019178,2]
[320680775,1711494632442,-500.0,0.00019178,2]
[320680776,1711494632452,-500.0,0.00019178,2]
[320680777,1711494632462,-1904.94,0.00019178,2]
[320680778,1711494632472,-500.0,0.00019178,2]
[320680779,1711494632612,-589.61,0.00019178,2]
[320680780,1711494632622,-500.0,0.00019178,2]
[320680781,1711494632632,-3070.4,0.00019178,2]
[320680782,1711494632642,-500.0,0.00019178,2]
[320680783,1711494632651,-501.30036832,0.00019178,2]
[320680784,1711494632671,-500.0,0.00019178,2]
[320680785,1711494632683,-1354.07,0.00019178,2]
[320680786,1711494632694,-500.0,0.00019178,2]
[320680787,1711494632704,-500.0,0.00019178,2]
[320680788,1711494632715,-500.0,0.00019178,2]
[320680789,1711494632726,-574.49,0.00019178,2]
[320680790,1711494632737,-500.0,0.00019178,2]
[320680791,1711494632746,-500.0,0.00019178,2]
[320680792,1711494632756,-291.95479424,0.00019178,2]
[320680793,1711494632766,-482.82549042,0.00019178,2]
[320681412,1711494643607,-161.208105,0.00018843,2]
[320681414,1711494643616,-59.03450958,0.00019178,2]
[320681416,1711494643626,-500.0,0.00019178,2]
[320681418,1711494643635,-500.0,0.00019178,2]
[320681420,1711494643644,-500.0,0.00019178,2]
[320681422,1711494643653,-500.0,0.00019178,2]
[320681424,1711494643663,-500.0,0.00019178,2]
[320681426,1711494643672,-2481.12,0.00019178,2]
[320681428,1711494643681,-500.0,0.00019178,2]
[320681430,1711494643690,-500.0,0.00019178,2]
[320681432,1711494643699,-500.0,0.00019178,2]
[320681434,1711494643708,-856.04,0.00019178,2]
[320681436,1711494643718,-517.8956799,0.00019178,2]
[320681438,1711494643727,-500.0,0.00019178,2]
[320681440,1711494643736,-502.50685408,0.00019178,2]
[320681442,1711494643746,-500.0,0.00019178,2]
[320681444,1711494643755,-528.79,0.00019178,2]
[320681446,1711494643764,-500.0,0.00019178,2]
[320681448,1711494643774,-500.0,0.00019178,2]
[320681450,1711494643784,-500.0,0.00019178,2]
[320681453,1711494643794,-500.0,0.00019178,2]
[320681455,1711494643804,-500.0,0.00019178,2]
[320681457,1711494643814,-642.20964942,0.00019178,2]
[320681459,1711494643823,-500.0,0.00019178,2]
[320681460,1711494643832,-500.0,0.00019178,2]
[320681463,1711494643842,-500.0,0.00019178,2]
[320681465,1711494643852,-500.0,0.00019178,2]
[320681467,1711494643861,-815.0,0.00019178,2]
[320681469,1711494643870,-614.02,0.00019178,2]
[320681471,1711494643879,-500.0,0.00019178,2]
[320681473,1711494643888,-500.0,0.00019178,2]
[320681475,1711494643898,-500.0,0.00019178,2]
[320681477,1711494643909,-602.34753603,0.00019178,2]
[320681479,1711494643918,-500.0,0.00019178,2]
[320681481,1711494643927,-500.0,0.00019178,2]
[320681483,1711494643937,-553.9848,0.00019178,2]
[320681485,1711494643946,-500.0,0.00019178,2]
[320681487,1711494643955,-500.0,0.00019178,2]
[320681489,1711494643964,-500.0,0.00019178,2]
[320681491,1711494643973,-500.0,0.00019178,2]
[320681493,1711494643982,-500.0,0.00019178,2]
[320681495,1711494643993,-304.68267303,0.00019178,2]
[320681497,1711494644005,-500.0,0.00019178,2]
[320681499,1711494644014,-500.0,0.00019178,2]
[320681501,1711494644023,-500.0,0.00019178,2]
[320681503,1711494644033,-1319.27,0.00019178,2]
[320681505,1711494644042,-500.0,0.00019178,2]
[320681507,1711494644051,-500.0,0.00019178,2]
[320681509,1711494644062,-1877.31,0.00019178,2]
[320681511,1711494644071,-500.0,0.00019178,2]
[320681513,1711494644080,-500.0,0.00019178,2]
[320681515,1711494644089,-278.3299957,0.00019178,2]
[320681517,1711494644098,-500.0,0.00019178,2]
[320681519,1711494644107,-500.0,0.00019178,2]
[320681521,1711494644115,-500.0,0.00019178,2]
[320681523,1711494644125,-574.21,0.00019178,2]
[320681525,1711494644134,-500.0,0.00019178,2]
[320681527,1711494644143,-25066.07,0.00019178,2]
[320681529,1711494644153,-500.0,0.00019178,2]
[320681531,1711494644162,-477.72787862,0.00019178,2]
[320681533,1711494644171,-7883.53,0.00019178,2]
[320681535,1711494644180,-525.22358246,0.00019178,2]
[320684370,1711494734104,56266.19754478,0.00025149,30]
[320684371,1711494861407,24900.0,0.00018184,2]
[320684372,1711495456536,6463.9790521,0.00018184,2]
[320684401,1711495832474,-1676.61049229,0.00019176,2]
[320684402,1711495832483,-369.24236927,0.00019176,2]
[320684470,1711495838768,-1452.96706141,0.00019176,2]
[320684473,1711495838780,-1722.52952849,0.00019177,2]
[320684475,1711495838791,-300.0,0.00019177,2]
[320684477,1711495838801,-500.0,0.00019178,2]
[320684479,1711495838810,-500.0,0.00019178,2]
[320684481,1711495838819,-500.0,0.00019178,2]
[320684483,1711495838828,-500.0,0.00019178,2]
[320684485,1711495838838,-500.0,0.00019178,2]
[320684487,1711495838847,-1297.65,0.00019178,2]
[320684488,1711495838856,-489.4291023,0.00019178,2]
[320684490,1711495838866,-500.0,0.00019178,2]
[320684493,1711495838876,-13.61279053,0.00019178,2]
[320684494,1711495838898,-486.38720947,0.00019178,2]
[320684495,1711495838908,-500.0,0.00019178,2]
[320684497,1711495838917,-550.55,0.00019178,2]
[320684499,1711495838927,-500.0,0.00019178,2]
[320684500,1711495838937,-13.51432057,0.00019178,2]
[320684502,1711495838949,-371.00082171,0.00019178,2]
[320685035,1711495843793,-435.85485772,0.00019178,2]
[320685036,1711495843802,-500.0,0.00019178,2]
[320685037,1711495843811,-519.28,0.00019178,2]
[320685038,1711495843819,-64.6679384,0.00019178,2]
[320686236,1711495952968,24528.794,0.00018353,2]
[320686237,1711496467600,359.69851593,0.00018499,2]
[320686238,1711496544008,359.69851593,0.00018499,2]
[320686239,1711496624512,359.69851593,0.00018499,2]
[320686240,1711496697019,359.69851593,0.00018499,2]
[320686241,1711496771522,359.69851593,0.00018499,2]
[320686242,1711496794032,996.6269453,0.00018283,2]
[320686277,1711497032618,-359.69851593,0.00018899,2]
[320686279,1711497032629,-261.19976112,0.000189,2]
[320686281,1711497032638,-165.40406428,0.00018986,2]
[320686283,1711497032648,-171.36253761,0.00019078,2]
[320686285,1711497032657,-4256.02656487,0.00019078,2]
[320686287,1711497032666,-651.12736053,0.00019177,2]
[320686289,1711497032676,-1212.26297189,0.00019177,2]
[320686291,1711497032685,-300.0,0.00019177,2]
[320686293,1711497032697,-500.0,0.00019178,2]
[320686295,1711497032707,-500.0,0.00019178,2]
[320686297,1711497032716,-500.0,0.00019178,2]
[320686299,1711497032725,-70.81127349,0.00019178,2]
[320686301,1711497032738,-429.18872651,0.00019178,2]
[320686303,1711497032747,-500.0,0.00019178,2]
[320686305,1711497032756,-500.0,0.00019178,2]
[320686306,1711497032765,-500.0,0.00019178,2]
[320686308,1711497032777,-500.0,0.00019178,2]
[320686310,1711497032787,-500.0,0.00019178,2]
[320686312,1711497032797,-698.84,0.00019178,2]
[320686314,1711497032806,-500.0,0.00019178,2]
[320686316,1711497032816,-588.44,0.00019178,2]
[320686318,1711497032825,-510.85,0.00019178,2]
[320686320,1711497032834,-500.0,0.00019178,2]
[320686322,1711497032843,-600.82,0.00019178,2]
[320686323,1711497032854,-500.0,0.00019178,2]
[320686325,1711497032864,-402.23412485,0.00019178,2]
[320686328,1711497032875,-97.76587515,0.00019178,2]
[320686329,1711497032885,-500.0,0.00019178,2]
[320686331,1711497032894,-500.0,0.00019178,2]
[320686333,1711497032904,-500.0,0.00019178,2]
[320686335,1711497032913,-500.0,0.00019178,2]
[320686336,1711497032925,-522.46,0.00019178,2]
[320686338,1711497032934,-500.0,0.00019178,2]
[320686340,1711497032944,-500.0,0.00019178,2]
[320686342,1711497032954,-500.0,0.00019178,2]
[320686344,1711497032963,-500.0,0.00019178,2]
[320686346,1711497032972,-174.79148427,0.00019178,2]
[320686437,1711497038654,-325.20851573,0.00019178,2]
[320686439,1711497038664,-500.0,0.00019178,2]
[320686441,1711497038674,-500.0,0.00019178,2]
[320686443,1711497038684,-565.05,0.00019178,2]
[320686445,1711497038694,-500.0,0.00019178,2]
[320686447,1711497038707,-500.0,0.00019178,2]
[320686448,1711497038716,-500.0,0.00019178,2]
[320686450,1711497038725,-500.0,0.00019178,2]
[320686452,1711497038735,-500.0,0.00019178,2]
[320686454,1711497038744,-500.0,0.00019178,2]
[320686456,1711497038753,-500.0,0.00019178,2]
[320686458,1711497038762,-500.0,0.00019178,2]
[320686461,1711497038772,-500.0,0.00019178,2]
[320686464,1711497038782,-500.0,0.00019178,2]
[320686467,1711497038792,-560.08,0.00019178,2]
[320686471,1711497038800,-500.0,0.00019178,2]
[320686474,1711497038809,-500.0,0.00019178,2]
[320686476,1711497038819,-500.0,0.00019178,2]
[320686478,1711497038828,-500.0,0.00019178,2]
[320686480,1711497038837,-500.0,0.00019178,2]
[320686482,1711497038846,-500.0,0.00019178,2]
[320686484,1711497038855,-500.0,0.00019178,2]
[320686486,1711497038864,-500.0,0.00019178,2]
[320686488,1711497038873,-500.0,0.00019178,2]
[320686490,1711497038882,-500.0,0.00019178,2]
[320686492,1711497038891,-471.4061047,0.00019178,2]
[320686654,1711497040760,-28.5938953,0.00019178,2]
[320686656,1711497040770,-330.1861047,0.00019178,2]
[320687278,1711497047393,502.19,0.000185,2]
[320690444,1711498239924,-312.83031292,0.00018899,2]
[320690457,1711498239984,-46.86820301,0.00018899,2]
[320690460,1711498239993,-174.13317408,0.000189,2]
[320690463,1711498240002,-646.22532093,0.0001904,2]
[320690466,1711498240014,-167.22332137,0.00019078,2]
[320690469,1711498240027,-242.63525262,0.00019078,2]
[320690471,1711498240036,-300.0,0.00019177,2]
[320690474,1711498240044,-500.0,0.00019178,2]
[320690477,1711498240054,-500.0,0.00019178,2]
[320690479,1711498240063,-536.75,0.00019178,2]
[320690482,1711498240072,-447.03522639,0.00019178,2]
[320690485,1711498240081,-276.79382167,0.00019178,2]
[320692905,1711499432046,-359.69851593,0.00018899,2]
[320692907,1711499432055,-185.90423582,0.000189,2]
[320692909,1711499432065,-8039.80171235,0.00019078,2]
[320692911,1711499432075,-776.79435194,0.00019176,2]
[320692913,1711499432084,-1610.35282495,0.00019176,2]
[320692915,1711499432093,-177.24122179,0.00019178,2]
[320692917,1711499432103,-1932.92,0.00019178,2]
[320692919,1711499432113,-500.0,0.00019178,2]
[320692921,1711499432123,-500.0,0.00019178,2]
[320692923,1711499432133,-500.0,0.00019178,2]
[320692925,1711499432142,-500.0,0.00019178,2]
[320692927,1711499432153,-491.94271311,0.00019178,2]
[320692928,1711499432162,-527.61,0.00019178,2]
[320692930,1711499432173,-293.46389962,0.00019178,2]
[320692932,1711499432183,-500.0,0.00019178,2]
[320692934,1711499432193,-500.0,0.00019178,2]
[320692936,1711499432203,-526.87612181,0.00019178,2]
[320692938,1711499432214,-570.92533878,0.00019178,2]
[320692940,1711499432225,-500.0,0.00019178,2]
[320692942,1711499432235,-506.76,0.00019178,2]
[320692944,1711499432246,-500.0,0.00019178,2]
[320692946,1711499432255,-500.0,0.00019178,2]
[320692947,1711499432265,-500.0,0.00019178,2]
[320692949,1711499432274,-786.19,0.00019178,2]
[320692951,1711499432284,-500.0,0.00019178,2]
[320692953,1711499432294,-500.0,0.00019178,2]
[320692955,1711499432304,-500.0,0.00019178,2]
[320692957,1711499432314,-296.45645239,0.00019178,2]
[320692959,1711499432323,-500.0,0.00019178,2]
[320692961,1711499432332,-500.0,0.00019178,2]
[320692963,1711499432343,-500.0,0.00019178,2]
[320692965,1711499432353,-500.0,0.00019178,2]
[320692967,1711499432363,-500.0,0.00019178,2]
[320692969,1711499432374,-500.0,0.00019178,2]
[320692971,1711499432384,-500.0,0.00019178,2]
[320692973,1711499432396,-500.0,0.00019178,2]
[320692975,1711499432407,-500.0,0.00019178,2]
[320692976,1711499432418,-500.0,0.00019178,2]
[320692979,1711499432429,-500.0,0.00019178,2]
[320692980,1711499432439,-669.72,0.00019178,2]
[320692982,1711499432448,-500.0,0.00019178,2]
[320692984,1711499432457,-500.0,0.00019178,2]
[320692986,1711499432467,-500.0,0.00019178,2]
[320692988,1711499432478,-500.0,0.00019178,2]
[320692990,1711499432487,-2363.98,0.00019178,2]
[320692992,1711499432497,-500.0,0.00019178,2]
[320692994,1711499432507,-500.0,0.00019178,2]
[320692996,1711499432517,-500.0,0.00019178,2]
[320692998,1711499432527,-500.0,0.00019178,2]
[320693000,1711499432538,-500.0,0.00019178,2]
[320693002,1711499432548,-166.60098048,0.00019178,2]
[320693004,1711499432557,-500.0,0.00019178,2]
[320693006,1711499432568,-278.93130905,0.00019178,2]
[320693008,1711499432579,-500.0,0.00019178,2]
[320693010,1711499432589,-500.0,0.00019178,2]
[320693012,1711499432598,-781.04,0.00019178,2]
[320693014,1711499432607,-500.0,0.00019178,2]
[320693016,1711499432617,-502.47421011,0.00019178,2]
[320693018,1711499432627,-575.79,0.00019178,2]
[320693020,1711499432637,-500.0,0.00019178,2]
[320693022,1711499432648,-563.92,0.00019178,2]
[320693024,1711499432658,-500.0,0.00019178,2]
[320693026,1711499432667,-500.0,0.00019178,2]
[320693028,1711499432677,-500.0,0.00019178,2]
[320693030,1711499432686,-500.0,0.00019178,2]
[320693032,1711499432695,-500.0,0.00019178,2]
[320693034,1711499432705,-500.0,0.00019178,2]
[320693036,1711499432715,-500.0,0.00019178,2]
[320693038,1711499432724,-500.0,0.00019178,2]
[320693040,1711499432735,-500.0,0.00019178,2]
[320693042,1711499432744,-500.69,0.00019178,2]
[320693044,1711499432754,-500.0,0.00019178,2]
[320693045,1711499432763,-550.29,0.00019178,2]
[320693048,1711499432772,-500.0,0.00019178,2]
[320693049,1711499432783,-500.0,0.00019178,2]
[320693051,1711499432793,-870.03,0.00019178,2]
[320693053,1711499432803,-500.0,0.00019178,2]
[320693055,1711499432814,-500.0,0.00019178,2]
[320693056,1711499432823,-500.0,0.00019178,2]
[320693058,1711499432832,-500.0,0.00019178,2]
[320693060,1711499432843,-500.0,0.00019178,2]
[320693062,1711499432853,-1264.3,0.00019178,2]
[320693063,1711499432862,-500.0,0.00019178,2]
[320693065,1711499432872,-753.57,0.00019178,2]
[320693067,1711499432881,-500.0,0.00019178,2]
[320693069,1711499432890,-500.0,0.00019178,2]
[320693070,1711499432900,-2048.78,0.00019178,2]
[320693072,1711499432910,-500.0,0.00019178,2]
[320693074,1711499432920,-500.0,0.00019178,2]
[320693075,1711499432929,-500.0,0.00019178,2]
[320693077,1711499432939,-500.0,0.00019178,2]
[320693079,1711499432949,-500.0,0.00019178,2]
[320693080,1711499432958,-1161.58,0.00019178,2]
[320693081,1711499432967,-514.38,0.00019178,2]
[320693082,1711499432977,-381.84255782,0.00019178,2]
[320693107,1711499438048,-194.10820212,0.00019078,2]
[320693108,1711499438058,-1508.83744218,0.00019178,2]
[320693109,1711499438068,-500.0,0.00019178,2]
[320693110,1711499438077,-500.0,0.00019178,2]
[320693111,1711499438087,-500.0,0.00019178,2]
[320693112,1711499438096,-500.0,0.00019178,2]
[320693113,1711499438221,-1889.58,0.00019178,2]
[320693114,1711499438233,-545.94,0.00019178,2]
[320693115,1711499438243,-500.0,0.00019178,2]
[320693116,1711499438253,-500.0,0.00019178,2]
[320693117,1711499438263,-3466.23977003,0.00019178,2]
[320693118,1711499438276,-2510.70026131,0.00019178,2]
[320693277,1711499443283,-5945.69629011,0.00019178,2]
[320693660,1711500638311,-359.69851593,0.00018877,2]
[320693662,1711500638321,-200.82533312,0.00018878,2]
[320693664,1711500638331,-200.82533311,0.00018892,2]
[320693665,1711500638340,-1192.52473182,0.00018978,2]
[320693668,1711500638352,-583.85177752,0.00018978,2]
[320693671,1711500638370,-3493.00845934,0.00018978,2]
[320693673,1711500638379,-621.31126605,0.00018992,2]
[320693675,1711500638388,-605.94029907,0.00019178,2]
[320693677,1711500638398,-500.0,0.00019178,2]
[320693678,1711500638407,-641.82,0.00019178,2]
[320693680,1711500638417,-500.0,0.00019178,2]
[320693682,1711500638427,-500.0,0.00019178,2]
[320693684,1711500638436,-500.0,0.00019178,2]
[320693687,1711500638445,-551.8,0.00019178,2]
[320693688,1711500638455,-500.0,0.00019178,2]
[320693690,1711500638464,-500.0,0.00019178,2]
[320693692,1711500638473,-500.0,0.00019178,2]
[320693694,1711500638482,-500.0,0.00019178,2]
[320693696,1711500638491,-500.0,0.00019178,2]
[320693698,1711500638501,-500.0,0.00019178,2]
[320693700,1711500638510,-500.0,0.00019178,2]
[320693703,1711500638520,-500.0,0.00019178,2]
[320693705,1711500638530,-500.0,0.00019178,2]
[320693706,1711500638539,-540.42,0.00019178,2]
[320693708,1711500638548,-500.0,0.00019178,2]
[320693710,1711500638558,-500.0,0.00019178,2]
[320693712,1711500638567,-177.51192555,0.00019178,2]
[320693715,1711500638577,-500.0,0.00019178,2]
[320693717,1711500638586,-500.0,0.00019178,2]
[320693718,1711500638595,-500.0,0.00019178,2]
[320693720,1711500638604,-500.0,0.00019178,2]
[320693722,1711500638614,-722.17,0.00019178,2]
[320693724,1711500638623,-500.0,0.00019178,2]
[320693726,1711500638632,-500.0,0.00019178,2]
[320693728,1711500638641,-71.99192905,0.00019178,2]
[320694138,1711500643423,-155.28656168,0.00019078,2]
[320694140,1711500643432,-428.00807095,0.00019178,2]
[320694142,1711500643441,-500.0,0.00019178,2]
[320694144,1711500643450,-500.0,0.00019178,2]
[320694146,1711500643460,-500.0,0.00019178,2]
[320694148,1711500643470,-500.0,0.00019178,2]
[320694149,1711500643479,-500.0,0.00019178,2]
[320694151,1711500643488,-509.79231611,0.00019178,2]
[320694152,1711500643497,-2265.48,0.00019178,2]
[320694154,1711500643506,-500.0,0.00019178,2]
[320694156,1711500643515,-500.0,0.00019178,2]
[320694158,1711500643524,-500.0,0.00019178,2]
[320694160,1711500643533,-748.5,0.00019178,2]
[320694162,1711500643542,-484.29408478,0.00019178,2]
[320694165,1711500643554,-17.35222546,0.00019178,2]
[320694167,1711500643563,-500.0,0.00019178,2]
[320694169,1711500643572,-500.0,0.00019178,2]
[320694170,1711500643580,-500.0,0.00019178,2]
[320694172,1711500643589,-500.0,0.00019178,2]
[320694174,1711500643598,-500.0,0.00019178,2]
[320694176,1711500643608,-194.37457177,0.00019178,2]
[320694189,1711500643725,-305.62542823,0.00019178,2]
[320694191,1711500643735,-500.0,0.00019178,2]
[320694193,1711500643744,-500.0,0.00019178,2]
[320694195,1711500643755,-326.50020644,0.00019178,2]
[320694197,1711500643766,-500.0,0.00019178,2]
[320694199,1711500643775,-500.0,0.00019178,2]
[320694201,1711500643784,-527.36,0.00019178,2]
[320694203,1711500643794,-500.0,0.00019178,2]
[320694205,1711500643803,-833.78,0.00019178,2]
[320694207,1711500643812,-500.0,0.00019178,2]
[320694209,1711500643822,-500.0,0.00019178,2]
[320694211,1711500643837,-500.0,0.00019178,2]
[320694214,1711500643847,-1963.42,0.00019178,2]
[320694215,1711500643857,-538.0,0.00019178,2]
[320694217,1711500643866,-500.0,0.00019178,2]
[320694219,1711500643876,-1852.38,0.00019178,2]
[320694221,1711500643885,-500.0,0.00019178,2]
[320694223,1711500643894,-500.0,0.00019178,2]
[320694226,1711500643904,-500.0,0.00019178,2]
[320694227,1711500643914,-500.0,0.00019178,2]
[320694229,1711500643923,-500.0,0.00019178,2]
[320694231,1711500643933,-500.0,0.00019178,2]
[320694233,1711500643942,-500.0,0.00019178,2]
[320694235,1711500643951,-500.0,0.00019178,2]
[320694237,1711500643960,-1811.9,0.00019178,2]
[320694239,1711500643969,-500.0,0.00019178,2]
[320694241,1711500643978,-500.0,0.00019178,2]
[320694243,1711500643987,-500.0,0.00019178,2]
[320694245,1711500643996,-500.0,0.00019178,2]
[320694247,1711500644005,-1211.63,0.00019178,2]
[320694249,1711500644014,-500.0,0.00019178,2]
[320694251,1711500644023,-253.57628297,0.00019178,2]
[320694253,1711500644032,-2012.6,0.00019178,2]
[320694255,1711500644042,-1113.18,0.00019178,2]
[320694257,1711500644052,-226.76,0.00019178,2]
[320694259,1711500644062,-366.98339756,0.00019178,2]
[320694261,1711500644071,-500.0,0.00019178,2]
[320694263,1711500644080,-933.3,0.00019178,2]
[320694265,1711500644090,-500.0,0.00019178,2]
[320694267,1711500644099,-500.0,0.00019178,2]
[320694269,1711500644108,-500.0,0.00019178,2]
[320694271,1711500644117,-500.0,0.00019178,2]
[320694273,1711500644127,-4069.67,0.00019178,2]
[320694275,1711500644136,-1810.85,0.00019178,2]
[320694277,1711500644145,-3855.21,0.00019178,2]
[320694279,1711500644154,-500.0,0.00019178,2]
[320694281,1711500644163,-500.0,0.00019178,2]
[320694283,1711500644172,-500.0,0.00019178,2]
[320694285,1711500644181,-500.0,0.00019178,2]
[320694287,1711500644191,-500.0,0.00019178,2]
[320694289,1711500644201,-23772.80442221,0.00019178,2]
[320694513,1711501288625,9143.2185794,0.00018482,2]
[320694517,1711501758426,2000.0,0.0001832,2]
[320694555,1711501832469,-676.332094,0.00018534,2]
[320694557,1711501832479,-391.51259947,0.00019177,2]
[320694559,1711501832490,-500.0,0.00019178,2]
[320694561,1711501832499,-500.0,0.00019178,2]
[320694563,1711501832508,-1775.2,0.00019178,2]
[320694565,1711501832517,-500.0,0.00019178,2]
[320694567,1711501832527,-515.58,0.00019178,2]
[320694569,1711501832537,-500.0,0.00019178,2]
[320694571,1711501832546,-500.0,0.00019178,2]
[320694573,1711501832556,-500.0,0.00019178,2]
[320694576,1711501832565,-500.0,0.00019178,2]
[320694580,1711501832575,-241.55991455,0.00019178,2]
[320694644,1711501833187,-258.44008545,0.00019178,2]
[320694646,1711501833197,-500.0,0.00019178,2]
[320694648,1711501833207,-500.0,0.00019178,2]
[320694650,1711501833216,-500.0,0.00019178,2]
[320694652,1711501833226,-503.26300063,0.00019178,2]
[320694653,1711501833236,-500.0,0.00019178,2]
[320694655,1711501833245,-116.2960156,0.00019178,2]
[320694719,1711501838525,-155.28656167,0.00019078,2]
[320694721,1711501838535,-637.1339844,0.00019178,2]
[320694723,1711501838545,-500.0,0.00019178,2]
[320694725,1711501838555,-500.0,0.00019178,2]
[320694727,1711501838565,-500.0,0.00019178,2]
[320694729,1711501838574,-500.0,0.00019178,2]
[320694731,1711501838583,-500.0,0.00019178,2]
[320694733,1711501838592,-73.55953147,0.00019178,2]
[320695268,1711501843736,-426.44046853,0.00019178,2]
[320695270,1711501843747,-500.0,0.00019178,2]
[320695272,1711501843756,-500.0,0.00019178,2]
[320695274,1711501843765,-525.19512194,0.00019178,2]
[320695276,1711501843774,-500.0,0.00019178,2]
[320695278,1711501843784,-505.38,0.00019178,2]
[320695280,1711501843793,-500.0,0.00019178,2]
[320695282,1711501843802,-500.0,0.00019178,2]
[320695284,1711501843811,-799.04,0.00019178,2]
[320695286,1711501843820,-500.0,0.00019178,2]
[320695288,1711501843829,-500.0,0.00019178,2]
[320695290,1711501843839,-500.0,0.00019178,2]
[320695292,1711501843848,-500.0,0.00019178,2]
[320695295,1711501843857,-500.0,0.00019178,2]
[320695298,1711501843866,-93.50646928,0.00019178,2]
[320696028,1711501855610,500.0,0.0001832,2]
[320696029,1711501856075,605.94029907,0.0001832,2]
[320696031,1711502225734,1173.8605858,0.00018323,2]
[320696032,1711502249646,9220.4302118,0.00018177,2]
[320696033,1711502311218,1128.3897422,0.00018177,2]
[320696034,1711502348064,1270.94787363,0.00018497,2]